[Event "Bijnor Open 2023"]
[Site "Bijnor"]
[Date "2023.12.01"]
[Round "3.5"]
[White "Anchal, Rastogi"]
[Black "Prabindra Mani Verma"]
[Result "0-1"]
[ECO "C41"]
[WhiteElo "1770"]
[BlackElo "1273"]
[Annotator "NA RC"]
[PlyCount "48"]
[EventDate "2023.11.29"]
[EventCountry "IND"]
[SourceTitle "playchess.com"]
[Source "ChessBase"]
[SourceQuality "1"]
[TimeControl "5400+30"]

1. Nf3 {[%emt 0:00:25]} d6 {[%emt 0:00:54]} 2. g3 {[%emt 0:00:23]} e5 {[%emt 0:00:50]} 3. e4 {[%emt 0:00:24]} Be7 {[%emt 0:01:00]} 4. Bg2 {[%emt 0:00:06]} Be6 {[%emt 0:00:34]} 5. d4 {[%emt 0:00:27]} exd4 {[%emt 0:03:10]} 6. Nxd4 {[%emt 0:00:09]} Qd7 {[%emt 0:02:11]} 7. Nxe6 {[%emt 0:00:57]} fxe6 {[%emt 0:00:29]} 8. Qg4 {[%emt 0:02:28]} d5 {[%emt 0:00:36]} 9. Qxg7 {[%emt 0:01:26]} Bb4+ {[%emt 0:00:20]} 10. Qc3 {[%emt 0:00:32]} Bxc3+ {[%emt 0:00:45]} 11. Nxc3 {[%emt 0:00:03]} d4 {[%emt 0:01:07]} 12. Ne2 {[%emt 0:00:24]} e5 {[%emt 0:01:21]} 13. f4 {[%emt 0:00:10]} Nc6 {[%emt 0:01:32]} 14. h4 {[%emt 0:01:08]} d3 {[%emt 0:01:53]} 15. Nc3 {[%emt 0:01:45]} dxc2 {[%emt 0:02:36]} 16. Nd5 {[%emt 0:01:34]} Nce7 {[%emt 0:04:46]} 17. Nc3 {[%emt 0:01:08]} Qd3 {[%emt 0:01:28]} 18. Kf2 {[%emt 0:01:07]} Nf6 {[%emt 0:01:03]} 19. Bf1 {[%emt 0:00:37]} Nxe4+ {[%emt 0:01:05]} 20. Nxe4 {[%emt 0:00:48]} Qxe4 {[%emt 0:00:08]} 21. Be3 {[%emt 0:01:54]} O-O-O {[%emt 0:02:38]} 22. Bg2 {[%emt 0:00:38]} Qb4 {[%emt 0:02:15]} 23. Rac1 {[%emt 0:00:16]} Rd2+ {[%emt 0:02:49]} 24. Kf3 {[%emt 0:01:34]} e4+ {[%emt 0:00:38]} 0-1

[Event "Bijnor Open 2023"]
[Site "Bijnor"]
[Date "2023.12.01"]
[Round "3.6"]
[White "Krishan Kumar Baghel"]
[Black "Verma Ashu"]
[Result "0-1"]
[ECO "C65"]
[WhiteElo "1286"]
[BlackElo "1674"]
[Annotator "NA RC"]
[PlyCount "78"]
[EventDate "2023.11.29"]
[EventCountry "IND"]
[SourceTitle "playchess.com"]
[Source "ChessBase"]
[SourceQuality "1"]
[TimeControl "5400+30"]

1. e4 {[%emt 0:00:07]} Nc6 {[%emt 0:00:53]} 2. Nf3 {[%emt 0:02:04]} e5 {[%emt 0:00:19]} 3. Bb5 {[%emt 0:00:25]} Nf6 {[%emt 0:00:19]} 4. d3 {[%emt 0:02:28]} Bc5 {[%emt 0:00:26]} 5. O-O {[%emt 0:00:50]} d6 {[%emt 0:00:13]} 6. h3 {[%emt 0:01:31]} Bd7 {[%emt 0:00:31]} 7. Bg5 {[%emt 0:00:44]} h6 {[%emt 0:00:24]} 8. Bh4 {[%emt 0:01:18]} g5 {[%emt 0:00:22]} 9. Bg3 {[%emt 0:01:55]} Nh5 {[%emt 0:00:22]} 10. Kh2 {[%emt 0:01:29]} Nf4 {[%emt 0:00:03]} 11. Bxf4 {[%emt 0:01:33]} gxf4 {[%emt 0:00:03]} 12. Nc3 {[%emt 0:02:13]} a6 {[%emt 0:04:33]} 13. Bc4 {[%emt 0:02:22]} Rg8 {[%emt 0:01:14]} 14. Nd5 {[%emt 0:04:10]} Na5 {[%emt 0:00:59]} 15. Bb3 {[%emt 0:02:22]} c6 {[%emt 0:00:23]} 16. Nc3 {[%emt 0:00:37]} Qf6 {[%emt 0:00:24]} 17. Qe2 {[%emt 0:01:11]} Nxb3 {[%emt 0:06:27]} 18. axb3 {[%emt 0:00:15]} O-O-O {[%emt 0:02:45]} 19. Rg1 {[%emt 0:03:04]} Rg7 {[%emt 0:05:23]} 20. Qf1 {[%emt 0:10:12]} Rdg8 {[%emt 0:00:46]} 21. Ne2 {[%emt 0:03:26]} Qg6 {[%emt 0:03:39]} 22. d4 {[%emt 0:02:31]} exd4 {[%emt 0:04:08]} 23. Nxf4 {[%emt 0:00:33]} Qxe4 {[%emt 0:01:08]} 24. Nd3 {[%emt 0:02:07]} Bb6 {[%emt 0:03:32]} 25. Re1 {[%emt 0:01:46]} Qf5 {[%emt 0:00:10]} 26. Ra1 {[%emt 0:07:08]} c5 {[%emt 0:18:55]} 27. Re1 {[%emt 0:00:54]} Bc7 {[%emt 0:00:59]} 28. Kh1 {[%emt 0:03:54]} Bc6 {[%emt 0:00:07]} 29. Re7 {[%emt 0:12:44]} Bxf3 {[%emt 0:03:14]} 30. Rxc7+ {[%emt 0:00:25]} Kxc7 {[%emt 0:00:08]} 31. gxf3 {[%emt 0:00:16]} Qxf3+ {[%emt 0:01:01]} 32. Kh2 {[%emt 0:00:26]} Rxg1 {[%emt 0:00:16]} 33. Qxg1 {[%emt 0:00:58]} Rxg1 {[%emt 0:00:26]} 34. Kxg1 {[%emt 0:00:14]} Qxh3 {[%emt 0:00:09]} 35. Nxc5 {[%emt 0:00:47]} dxc5 {[%emt 0:00:16]} 36. b4 {[%emt 0:00:08]} cxb4 {[%emt 0:00:33]} 37. c4 {[%emt 0:00:04]} d3 {[%emt 0:00:15]} 38. f4 {[%emt 0:00:02]} Qg3+ {[%emt 0:00:05]} 39. Kh1 {[%emt 0:03:38]} d2 {[%emt 0:01:07]} 0-1

[Event "Bijnor Open 2023"]
[Site "Bijnor"]
[Date "2023.12.01"]
[Round "3.7"]
[White "Gopal Krishna Maheshwari"]
[Black "Manoj Kumar Vedpal Singh"]
[Result "1-0"]
[ECO "C01"]
[WhiteElo "1627"]
[BlackElo "1269"]
[Annotator "NA RC"]
[PlyCount "84"]
[EventDate "2023.11.29"]
[EventCountry "IND"]
[SourceTitle "playchess.com"]
[Source "ChessBase"]
[SourceQuality "1"]
[TimeControl "5400+30"]

1. e4 {[%emt 0:00:03]} e6 {[%emt 0:00:16]} 2. d4 {[%emt 0:01:08]} d5 {[%emt 0:00:19]} 3. exd5 {[%emt 0:00:12]} exd5 {[%emt 0:00:07]} 4. Bd3 {[%emt 0:00:07]} Bd6 {[%emt 0:00:41]} 5. Nf3 {[%emt 0:01:09]} Nf6 {[%emt 0:04:38]} 6. h3 {[%emt 0:02:19]} O-O {[%emt 0:02:17]} 7. O-O {[%emt 0:00:07]} c6 {[%emt 0:00:39]} 8. c3 {[%emt 0:00:57]} Nbd7 {[%emt 0:03:31]} 9. Qc2 {[%emt 0:01:25]} h6 {[%emt 0:01:33]} 10. Nbd2 {[%emt 0:04:06]} Re8 {[%emt 0:02:56]} 11. b3 {[%emt 0:04:40]} Nf8 {[%emt 0:02:11]} 12. Bb2 {[%emt 0:09:28]} Bc7 {[%emt 0:00:15]} 13. Rfe1 {[%emt 0:06:03]} Be6 {[%emt 0:00:14]} 14. c4 {[%emt 0:09:03]} Rc8 {[%emt 0:11:34]} 15. c5 {[%emt 0:02:54]} Nh5 {[%emt 0:02:27]} 16. Ne5 {[%emt 0:11:10]} Nf4 {[%emt 0:07:14]} 17. Ndf3 {[%emt 0:03:43]} Qf6 {[%emt 0:14:10]} 18. Re3 {[%emt 0:04:42]} Nxd3 {[%emt 0:04:27]} 19. Qxd3 {[%emt 0:00:12]} Bf5 {[%emt 0:01:29]} 20. Qc3 {[%emt 0:02:59]} Be4 {[%emt 0:01:43]} 21. Nd2 {[%emt 0:00:57]} Qf4 {[%emt 0:13:43]} 22. Nxe4 {[%emt 0:15:49]} dxe4 {[%emt 0:01:29]} 23. Rae1 {[%emt 0:03:24]} f5 {[%emt 0:06:16]} 24. f3 {[%emt 0:03:09]} exf3 {[%emt 0:04:33]} 25. Nxf3 {[%emt 0:02:28]} Rxe3 {[%emt 0:02:03]} 26. Rxe3 {[%emt 0:00:02]} Ba5 {[%emt 0:05:46]} 27. Qc4+ {[%emt 0:00:11]} Kh7 {[%emt 0:00:29]} 28. Re7 {[%emt 0:01:45]} Rc7 {[%emt 0:01:22]} 29. Re8 {[%emt 0:00:47]} Nd7 {[%emt 0:01:41]} 30. Qg8+ {[%emt 0:00:56]} Kg6 {[%emt 0:00:34]} 31. d5 {[%emt 0:01:04]} Nf6 {[%emt 0:00:36]} 32. Re6 {[%emt 0:02:09]} Qe3+ {[%emt 0:01:17]} 33. Kh1 {[%emt 0:01:51]} Bc3 {[%emt 0:03:16]} 34. Qe8+ {[%emt 0:00:58]} Rf7 {[%emt 0:00:29]} 35. Rxe3 {[%emt 0:00:20]} Nxe8 {[%emt 0:00:07]} 36. Bxc3 {[%emt 0:00:07]} Rf8 {[%emt 0:00:45]} 37. Ne5+ {[%emt 0:00:43]} Kh7 {[%emt 0:00:23]} 38. Nd7 {[%emt 0:00:07]} Rg8 {[%emt 0:00:09]} 39. d6 {[%emt 0:00:16]} b6 {[%emt 0:00:30]} 40. b4 {[%emt 0:00:02]} Kg6 {[%emt 0:01:48]} 41. Re7 {[%emt 0:00:24]} bxc5 {[%emt 0:00:32]} 42. bxc5 {[%emt 0:00:09]} f4 {[%emt 0:00:43]} 1-0

[Event "Bijnor Open 2023"]
[Site "Bijnor"]
[Date "2023.12.01"]
[Round "3.8"]
[White "Surender Kumar"]
[Black "Sparsh Yadav"]
[Result "0-1"]
[ECO "B20"]
[WhiteElo "1271"]
[BlackElo "1598"]
[Annotator "NA RC"]
[PlyCount "80"]
[EventDate "2023.11.29"]
[EventCountry "IND"]
[SourceTitle "playchess.com"]
[Source "ChessBase"]
[SourceQuality "1"]
[TimeControl "5400+30"]

1. e4 {[%emt 0:00:07]} c5 {[%emt 0:00:23]} 2. Bc4 {[%emt 0:02:19]} e6 {[%emt 0:01:10]} 3. Nc3 {[%emt 0:00:40]} Nc6 {[%emt 0:00:18]} 4. a3 {[%emt 0:00:12]} Nf6 {[%emt 0:00:13]} 5. d3 {[%emt 0:00:17]} d5 {[%emt 0:00:08]} 6. exd5 {[%emt 0:00:11]} exd5 {[%emt 0:00:02]} 7. Ba2 {[%emt 0:01:19]} Be7 {[%emt 0:00:35]} 8. h3 {[%emt 0:00:40]} O-O {[%emt 0:00:24]} 9. Nge2 {[%emt 0:00:08]} Bf5 {[%emt 0:00:38]} 10. Ng3 {[%emt 0:00:26]} Bg6 {[%emt 0:00:22]} 11. O-O {[%emt 0:00:14]} h6 {[%emt 0:00:19]} 12. f4 {[%emt 0:00:25]} Bh7 {[%emt 0:01:41]} 13. f5 {[%emt 0:00:24]} Bd6 {[%emt 0:00:17]} 14. Nh5 {[%emt 0:00:22]} Nd4 {[%emt 0:12:25]} 15. Nxf6+ {[%emt 0:00:41]} Qxf6 {[%emt 0:00:07]} 16. Nxd5 {[%emt 0:03:09]} Qe5 {[%emt 0:00:39]} 17. Bf4 {[%emt 0:00:44]} Ne2+ {[%emt 0:00:09]} 18. Kh1 {[%emt 0:03:30]} Nxf4 {[%emt 0:00:29]} 19. Nxf4 {[%emt 0:03:31]} Bxf5 {[%emt 0:00:32]} 20. Kg1 {[%emt 0:08:28]} Qd4+ {[%emt 0:03:48]} 21. Kh1 {[%emt 0:00:57]} Bxf4 {[%emt 0:00:08]} 22. c3 {[%emt 0:00:21]} Qd6 {[%emt 0:00:19]} 23. Qf3 {[%emt 0:00:22]} g5 {[%emt 0:00:21]} 24. g3 {[%emt 0:00:41]} Bd7 {[%emt 0:00:11]} 25. Kh2 {[%emt 0:01:53]} Bc6 {[%emt 0:00:39]} 26. Qg4 {[%emt 0:03:32]} Be5 {[%emt 0:01:23]} 27. Rf2 {[%emt 0:00:32]} Rae8 {[%emt 0:02:02]} 28. Raf1 {[%emt 0:00:25]} Re7 {[%emt 0:00:21]} 29. d4 {[%emt 0:05:23]} cxd4 {[%emt 0:00:18]} 30. cxd4 {[%emt 0:01:12]} Qxd4 {[%emt 0:04:24]} 31. Qf5 {[%emt 0:00:55]} Qe4 {[%emt 0:01:28]} 32. b4 {[%emt 0:05:59]} Qxf5 {[%emt 0:00:40]} 33. Rxf5 {[%emt 0:00:05]} Bd4 {[%emt 0:00:10]} 34. Bc4 {[%emt 0:02:14]} Kg7 {[%emt 0:04:48]} 35. h4 {[%emt 0:00:46]} f6 {[%emt 0:00:30]} 36. hxg5 {[%emt 0:00:29]} hxg5 {[%emt 0:00:07]} 37. g4 {[%emt 0:02:53]} Rh8+ {[%emt 0:00:05]} 38. Kg3 {[%emt 0:00:22]} Re3+ {[%emt 0:00:36]} 39. R5f3 {[%emt 0:00:55]} Be5+ {[%emt 0:00:54]} 40. Kg2 {[%emt 0:00:40]} Rh2+ {[%emt 0:00:11]} 0-1

[Event "Bijnor Open 2023"]
[Site "Bijnor"]
[Date "2023.12.01"]
[Round "3.9"]
[White "Ayush Saxena"]
[Black "Anant Panwar"]
[Result "1-0"]
[ECO "B42"]
[WhiteElo "1567"]
[BlackElo "1245"]
[Annotator "NA RC"]
[PlyCount "85"]
[EventDate "2023.11.29"]
[EventCountry "IND"]
[SourceTitle "playchess.com"]
[Source "ChessBase"]
[SourceQuality "1"]
[TimeControl "5400+30"]

1. e4 {[%emt 0:00:02]} c5 {[%emt 0:00:07]} 2. Nf3 {[%emt 0:00:04]} e6 {[%emt 0:00:09]} 3. d4 {[%emt 0:00:04]} cxd4 {[%emt 0:00:07]} 4. Nxd4 {[%emt 0:00:05]} a6 {[%emt 0:00:11]} 5. c4 {[%emt 0:00:09]} Nf6 {[%emt 0:00:44]} 6. Bd3 {[%emt 0:01:07]} Qc7 {[%emt 0:01:17]} 7. O-O {[%emt 0:00:53]} Bd6 {[%emt 0:09:20]} 8. h3 {[%emt 0:00:27]} h5 {[%emt 0:02:20]} 9. Nc3 {[%emt 0:00:52]} Ng4 {[%emt 0:10:56]} 10. Nf3 {[%emt 0:17:43]} Nc6 {[%emt 0:05:55]} 11. Ne2 {[%emt 0:02:34]} Nce5 {[%emt 0:14:33]} 12. hxg4 {[%emt 0:03:11]} Nxd3 {[%emt 0:32:38]} 13. Qxd3 {[%emt 0:00:06]} hxg4 {[%emt 0:00:10]} 14. e5 {[%emt 0:00:10]} Bc5 {[%emt 0:05:53]} 15. Nh2 {[%emt 0:04:33]} f5 {[%emt 0:05:31]} 16. Qg3 {[%emt 0:01:55]} b6 {[%emt 0:01:24]} 17. Be3 {[%emt 0:00:26]} Be7 {[%emt 0:01:09]} 18. Rad1 {[%emt 0:02:57]} g5 {[%emt 0:02:53]} 19. Bd4 {[%emt 0:02:27]} Bb7 {[%emt 0:01:19]} 20. Qb3 {[%emt 0:15:31]} Qc6 {[%emt 0:00:40]} 21. f3 {[%emt 0:00:33]} Bc5 {[%emt 0:00:45]} 22. Qe3 {[%emt 0:02:57]} f4 {[%emt 0:01:06]} 23. Qe4 {[%emt 0:02:26]} Kd8 {[%emt 0:02:22]} 24. Qxc6 {[%emt 0:00:35]} Bxc6 {[%emt 0:00:02]} 25. Nxg4 {[%emt 0:00:11]} Kc7 {[%emt 0:00:42]} 26. a3 {[%emt 0:00:29]} Rh4 {[%emt 0:00:24]} 27. b4 {[%emt 0:00:15]} Be7 {[%emt 0:00:06]} 28. Bc3 {[%emt 0:00:54]} Rah8 {[%emt 0:00:36]} 29. Nd4 {[%emt 0:00:23]} Bb7 {[%emt 0:00:53]} 30. Nf6 {[%emt 0:00:20]} Bc8 {[%emt 0:00:33]} 31. Kf2 {[%emt 0:01:38]} Rh2 {[%emt 0:00:23]} 32. a4 {[%emt 0:01:19]} Bf8 {[%emt 0:00:47]} 33. Ne8+ {[%emt 0:01:03]} Kd8 {[%emt 0:00:16]} 34. Nd6 {[%emt 0:00:21]} Bxd6 {[%emt 0:00:14]} 35. exd6 {[%emt 0:00:05]} Rf8 {[%emt 0:00:22]} 36. c5 {[%emt 0:00:18]} e5 {[%emt 0:00:45]} 37. Ne2 {[%emt 0:01:22]} bxc5 {[%emt 0:00:25]} 38. bxc5 {[%emt 0:00:08]} Bb7 {[%emt 0:00:11]} 39. Bxe5 {[%emt 0:00:21]} g4 {[%emt 0:00:10]} 40. Bxf4 {[%emt 0:00:13]} Rxf4 {[%emt 0:01:23]} 41. Nxf4 {[%emt 0:00:07]} Bxf3 {[%emt 0:00:41]} 42. Rb1 {[%emt 0:00:13]} Ke8 {[%emt 0:00:23]} 43. Kg3 {[%emt 0:00:24]} 1-0

[Event "Bijnor Open 2023"]
[Site "Bijnor"]
[Date "2023.12.01"]
[Round "3.10"]
[White "Ujjwal Chauhan"]
[Black "Amit Srivastava"]
[Result "1-0"]
[ECO "B13"]
[WhiteElo "1243"]
[BlackElo "1514"]
[Annotator "NA RC"]
[PlyCount "123"]
[EventDate "2023.11.29"]
[EventCountry "IND"]
[SourceTitle "playchess.com"]
[Source "ChessBase"]
[SourceQuality "1"]
[TimeControl "5400+30"]

1. e4 {[%emt 0:00:06]} c6 {[%emt 0:00:17]} 2. d4 {[%emt 0:00:47]} d5 {[%emt 0:00:12]} 3. exd5 {[%emt 0:00:06]} cxd5 {[%emt 0:00:42]} 4. Nf3 {[%emt 0:00:21]} Nc6 {[%emt 0:00:08]} 5. Be2 {[%emt 0:01:36]} Bf5 {[%emt 0:00:28]} 6. O-O {[%emt 0:00:35]} Nf6 {[%emt 0:00:33]} 7. Nc3 {[%emt 0:02:31]} e6 {[%emt 0:00:19]} 8. a3 {[%emt 0:01:56]} h6 {[%emt 0:00:41]} 9. Bf4 {[%emt 0:01:09]} a6 {[%emt 0:00:16]} 10. h3 {[%emt 0:01:26]} Be7 {[%emt 0:01:25]} 11. Bd3 {[%emt 0:02:00]} Bxd3 {[%emt 0:01:25]} 12. Qxd3 {[%emt 0:00:10]} O-O {[%emt 0:00:32]} 13. Rfe1 {[%emt 0:03:45]} b5 {[%emt 0:01:28]} 14. Ne5 {[%emt 0:04:10]} Qb6 {[%emt 0:07:03]} 15. b4 {[%emt 0:04:45]} Rac8 {[%emt 0:03:31]} 16. Ne2 {[%emt 0:07:14]} Rfd8 {[%emt 0:07:39]} 17. c3 {[%emt 0:01:28]} Bf8 {[%emt 0:05:46]} 18. Rac1 {[%emt 0:01:40]} Nb8 {[%emt 0:06:05]} 19. Qf3 {[%emt 0:05:39]} Nbd7 {[%emt 0:05:43]} 20. Ng3 {[%emt 0:10:22]} Qb7 {[%emt 0:13:46]} 21. Ng4 {[%emt 0:19:01]} Nxg4 {[%emt 0:02:47]} 22. hxg4 {[%emt 0:00:11]} g6 {[%emt 0:07:24]} 23. Qe3 {[%emt 0:05:55]} Kh7 {[%emt 0:00:54]} 24. g5 {[%emt 0:00:47]} h5 {[%emt 0:03:11]} 25. Qd3 {[%emt 0:00:23]} Kg7 {[%emt 0:05:09]} 26. f3 {[%emt 0:04:51]} Qc6 {[%emt 0:01:14]} 27. Kf2 {[%emt 0:00:46]} Bd6 {[%emt 0:01:08]} 28. Bd2 {[%emt 0:08:27]} Qc4 {[%emt 0:08:04]} 29. Qb1 {[%emt 0:01:36]} Rh8 {[%emt 0:02:00]} 30. Rh1 {[%emt 0:01:04]} Qc7 {[%emt 0:04:09]} 31. Ne2 {[%emt 0:00:45]} Nb6 {[%emt 0:00:24]} 32. f4 {[%emt 0:06:18]} Nc4 {[%emt 0:01:28]} 33. Qa2 {[%emt 0:00:21]} Be7 {[%emt 0:02:22]} 34. Rh3 {[%emt 0:00:47]} f6 {[%emt 0:00:54]} 35. Rch1 {[%emt 0:01:19]} fxg5 {[%emt 0:00:26]} 36. fxg5 {[%emt 0:00:31]} Rhf8+ {[%emt 0:00:35]} 37. Ke1 {[%emt 0:00:29]} Bd6 {[%emt 0:01:36]} 38. g4 {[%emt 0:01:15]} Rh8 {[%emt 0:03:38]} 39. gxh5 {[%emt 0:00:52]} Rxh5 {[%emt 0:00:06]} 40. Rxh5 {[%emt 0:00:53]} gxh5 {[%emt 0:00:27]} 41. Rxh5 {[%emt 0:00:30]} Bg3+ {[%emt 0:00:41]} 42. Kd1 {[%emt 0:00:40]} Rf8 {[%emt 0:01:55]} 43. Rh1 {[%emt 0:00:42]} Rf5 {[%emt 0:01:10]} 44. Qc2 {[%emt 0:01:16]} Bd6 {[%emt 0:01:42]} 45. Kc1 {[%emt 0:00:33]} Qf7 {[%emt 0:00:09]} 46. g6 {[%emt 0:00:38]} Qf6 {[%emt 0:01:03]} 47. Qd3 {[%emt 0:00:43]} Rf1+ {[%emt 0:00:18]} 48. Rxf1 {[%emt 0:00:22]} Qxf1+ {[%emt 0:00:05]} 49. Kc2 {[%emt 0:00:10]} Qa1 {[%emt 0:00:42]} 50. Bc1 {[%emt 0:00:41]} Nxa3+ {[%emt 0:01:05]} 51. Bxa3 {[%emt 0:00:22]} Qxa3 {[%emt 0:00:10]} 52. Kd1 {[%emt 0:00:20]} Bxb4 {[%emt 0:00:37]} 53. Qf3 {[%emt 0:00:51]} Qa1+ {[%emt 0:00:38]} 54. Kd2 {[%emt 0:00:06]} Qb2+ {[%emt 0:00:41]} 55. Ke1 {[%emt 0:00:09]} Qb1+ {[%emt 0:00:23]} 56. Kf2 {[%emt 0:00:11]} Kxg6 {[%emt 0:00:42]} 57. cxb4 {[%emt 0:00:27]} Qxb4 {[%emt 0:00:05]} 58. Nf4+ {[%emt 0:00:06]} Kh6 {[%emt 0:00:35]} 59. Qh5+ {[%emt 0:00:24]} Kg7 {[%emt 0:00:01]} 60. Qg6+ {[%emt 0:00:07]} Kh8 {[%emt 0:00:03]} 61. Qf6+ {[%emt 0:00:14]} Kh7 {[%emt 0:00:18]} 62. Qf7+ {[%emt 0:00:05]} 1-0

[Event "Bijnor Open 2023"]
[Site "Bijnor"]
[Date "2023.12.01"]
[Round "4.1"]
[White "Sumit Kumar"]
[Black "Kulkarni, Vikramaditya"]
[Result "0-1"]
[ECO "E12"]
[WhiteElo "1334"]
[BlackElo "2209"]
[Annotator "RC"]
[PlyCount "38"]
[EventDate "2023.11.29"]
[EventCountry "IND"]
[SourceTitle "playchess.com"]
[Source "ChessBase"]
[SourceQuality "1"]
[TimeControl "5400+30"]

1. d4 {[%emt 0:00:09]} Nf6 {[%emt 0:00:18]} 2. c4 {[%emt 0:00:12]} e6 {[%emt 0:00:39]} 3. Nf3 {[%emt 0:00:27]} b6 {[%emt 0:02:16]} 4. a3 {[%emt 0:01:45]} Ba6 {[%emt 0:00:20]} 5. Nbd2 {[%emt 0:05:03]} c5 {[%emt 0:12:12]} 6. e3 {[%emt 0:00:47]} Be7 {[%emt 0:01:08]} 7. Bd3 {[%emt 0:04:22]} O-O {[%emt 0:06:40]} 8. O-O {[%emt 0:01:27]} Nc6 {[%emt 0:01:40]} 9. Qc2 {[%emt 0:01:38]} cxd4 {[%emt 0:00:43]} 10. exd4 {[%emt 0:00:32]} d5 {[%emt 0:00:26]} 11. b3 {[%emt 0:28:36]} dxc4 {[%emt 0:00:31]} 12. Bxc4 {[%emt 0:03:05]} Bxc4 {[%emt 0:00:21]} 13. Qxc4 {[%emt 0:00:59]} Rc8 {[%emt 0:00:19]} 14. Qa4 {[%emt 0:00:50]} Qd5 {[%emt 0:02:10]} 15. Bb2 {[%emt 0:01:18]} b5 {[%emt 0:05:56]} 16. Qa6 {[%emt 0:01:48]} Nb8 {[%emt 0:03:22]} 17. Qa5 {[%emt 0:04:30]} Bd8 {[%emt 0:29:08]} 18. Qxa7 {[%emt 0:03:21]} Nfd7 {[%emt 0:00:29]} 19. Nc4 {[%emt 0:17:12]} bxc4 {[%emt 0:05:55]} 0-1

[Event "Bijnor Open 2023"]
[Site "Bijnor"]
[Date "2023.12.01"]
[Round "4.2"]
[White "Prabindra Mani Verma"]
[Black "Ramnathan, Balasubramaniam"]
[Result "0-1"]
[ECO "B06"]
[WhiteElo "1273"]
[BlackElo "1920"]
[Annotator "NA RC"]
[PlyCount "94"]
[EventDate "2023.11.29"]
[EventCountry "IND"]
[SourceTitle "playchess.com"]
[Source "ChessBase"]
[SourceQuality "1"]
[TimeControl "5400+30"]

1. e4 {[%emt 0:01:01]} g6 {[%emt 0:00:27]} 2. d4 {[%emt 0:00:38]} Bg7 {[%emt 0:00:06]} 3. Nf3 {[%emt 0:00:30]} d6 {[%emt 0:00:22]} 4. Nc3 {[%emt 0:02:09]} Bg4 {[%emt 0:00:58]} 5. Be2 {[%emt 0:02:10]} Nc6 {[%emt 0:00:34]} 6. Be3 {[%emt 0:01:21]} Bxf3 {[%emt 0:01:26]} 7. Bxf3 {[%emt 0:00:31]} e5 {[%emt 0:00:06]} 8. d5 {[%emt 0:01:24]} Nce7 {[%emt 0:02:02]} 9. Qe2 {[%emt 0:00:36]} a6 {[%emt 0:00:55]} 10. O-O {[%emt 0:01:04]} f5 {[%emt 0:01:09]} 11. g3 {[%emt 0:02:21]} Nf6 {[%emt 0:00:20]} 12. Bg5 {[%emt 0:05:47]} O-O {[%emt 0:00:30]} 13. Qd2 {[%emt 0:01:31]} Qd7 {[%emt 0:00:56]} 14. Bh6 {[%emt 0:00:18]} fxe4 {[%emt 0:03:15]} 15. Bg2 {[%emt 0:05:54]} c6 {[%emt 0:06:39]} 16. dxc6 {[%emt 0:01:32]} Qxc6 {[%emt 0:00:06]} 17. Bxg7 {[%emt 0:07:18]} Kxg7 {[%emt 0:00:10]} 18. Rad1 {[%emt 0:01:51]} Rad8 {[%emt 0:03:37]} 19. Rfe1 {[%emt 0:04:08]} d5 {[%emt 0:00:26]} 20. Qg5 {[%emt 0:00:08]} Nf5 {[%emt 0:03:45]} 21. Bh3 {[%emt 0:01:55]} h6 {[%emt 0:00:16]} 22. Qd2 {[%emt 0:00:25]} Nd4 {[%emt 0:00:09]} 23. Bg2 {[%emt 0:02:27]} b5 {[%emt 0:05:23]} 24. Ne2 {[%emt 0:04:12]} Nf3+ {[%emt 0:00:20]} 25. Bxf3 {[%emt 0:00:56]} exf3 {[%emt 0:00:09]} 26. Nc3 {[%emt 0:01:30]} Qe6 {[%emt 0:03:02]} 27. Qd3 {[%emt 0:00:33]} e4 {[%emt 0:01:59]} 28. Qxf3 {[%emt 0:00:41]} Ng4 {[%emt 0:00:26]} 29. Qd3 {[%emt 0:04:43]} Ne5 {[%emt 0:02:51]} 30. Qd4 {[%emt 0:05:19]} Kh7 {[%emt 0:00:16]} 31. Qa7+ {[%emt 0:02:00]} Rf7 {[%emt 0:00:31]} 32. Qc5 {[%emt 0:00:48]} Qh3 {[%emt 0:00:53]} 33. f4 {[%emt 0:04:10]} Nf3+ {[%emt 0:00:10]} 34. Kf2 {[%emt 0:01:01]} Qxh2+ {[%emt 0:00:49]} 35. Ke3 {[%emt 0:00:10]} Nxe1 {[%emt 0:00:48]} 36. Ne2 {[%emt 0:00:51]} Ng2+ {[%emt 0:01:39]} 37. Kd2 {[%emt 0:00:15]} d4 {[%emt 0:03:27]} 38. Kc1 {[%emt 0:00:19]} Ne3 {[%emt 0:00:44]} 39. Re1 {[%emt 0:02:31]} Qf2 {[%emt 0:01:08]} 40. Kd2 {[%emt 0:01:04]} Nc4+ {[%emt 0:00:12]} 41. Kd1 {[%emt 0:01:06]} Qe3 {[%emt 0:01:08]} 42. Qb4 {[%emt 0:01:43]} a5 {[%emt 0:00:19]} 43. Ng1 {[%emt 0:00:23]} axb4 {[%emt 0:00:39]} 44. Rxe3 {[%emt 0:00:12]} dxe3+ {[%emt 0:00:37]} 45. Kc1 {[%emt 0:01:11]} Rfd7 {[%emt 0:00:10]} 46. c3 {[%emt 0:00:38]} Rd1+ {[%emt 0:00:09]} 47. Kc2 {[%emt 0:00:25]} R8d2+ {[%emt 0:00:03]} 0-1